[Event "Early-Titled-Tuesday-Blitz-January-16-2024"]
[Site "Chess.com"]
[Date "2024.01.16"]
[Round "8"]
[White "FranciscodelaF"]
[Black "Roedor"]
[Result "0-1"]
[WhiteElo "2250"]
[BlackElo "2396"]
[TimeControl "180+1"]
[EndTime "9:30:02 PST"]
[Termination "Roedor won by resignation"]

1. d4 {[%clk 0:02:57.7]} 1... Nf6 {[%clk 0:02:57.1]} 2. Nf3 {[%clk 0:02:57.3]}
2... g6 {[%clk 0:02:56.7]} 3. Bf4 {[%clk 0:02:56.8]} 3... Bg7 {[%clk 0:02:56.2]}
4. e3 {[%clk 0:02:56.6]} 4... O-O {[%clk 0:02:55.7]} 5. Nbd2 {[%clk 0:02:55.4]}
5... d6 {[%clk 0:02:54.6]} 6. Bc4 {[%clk 0:02:54.7]} 6... b6 {[%clk 0:02:52.1]}
7. O-O {[%clk 0:02:54.3]} 7... Bb7 {[%clk 0:02:52.2]} 8. c3 {[%clk 0:02:54.2]}
8... Nbd7 {[%clk 0:02:49.8]} 9. Re1 {[%clk 0:02:53.5]} 9... Ne4 {[%clk
0:02:48.6]} 10. Nxe4 {[%clk 0:02:49.8]} 10... Bxe4 {[%clk 0:02:49]} 11. d5
{[%clk 0:02:43]} 11... Nf6 {[%clk 0:02:25.9]} 12. Bb3 {[%clk 0:02:20.4]} 12...
a5 {[%clk 0:02:23]} 13. c4 {[%clk 0:02:20.1]} 13... Bf5 {[%clk 0:02:19.8]} 14.
Nd2 {[%clk 0:02:13.2]} 14... e5 {[%clk 0:02:07.1]} 15. Bg3 {[%clk 0:02:03.8]}
15... Nh5 {[%clk 0:02:05]} 16. e4 {[%clk 0:01:59.4]} 16... Bd7 {[%clk
0:02:04.3]} 17. a4 {[%clk 0:01:55.8]} 17... f5 {[%clk 0:02:01.4]} 18. Qe2 {[%clk
0:01:49.5]} 18... f4 {[%clk 0:02:00.4]} 19. Nf3 {[%clk 0:01:45.5]} 19... fxg3
{[%clk 0:01:59.8]} 20. hxg3 {[%clk 0:01:46.4]} 20... Bg4 {[%clk 0:02:00]} 21.
Rac1 {[%clk 0:01:37.6]} 21... Bh6 {[%clk 0:01:59.2]} 22. Rc3 {[%clk 0:01:31]}
22... Bxf3 {[%clk 0:01:53.4]} 23. gxf3 {[%clk 0:01:29.5]} 23... Qg5 {[%clk
0:01:47.7]} 24. Bd1 {[%clk 0:01:28.2]} 24... Nxg3 {[%clk 0:01:40.3]} 25. fxg3
{[%clk 0:01:27.4]} 25... Qxg3+ {[%clk 0:01:41.2]} 26. Kf1 {[%clk 0:01:20.2]}
26... Qh3+ {[%clk 0:01:31.2]} 27. Kg1 {[%clk 0:01:14.5]} 27... Rf4 {[%clk
0:01:29.1]} 28. Rc2 {[%clk 0:01:09.6]} 28... Qg3+ {[%clk 0:01:22.9]} 29. Qg2
{[%clk 0:01:06.1]} 29... Qxe1+ {[%clk 0:01:22.5]} 0-1

[Event "Early-Titled-Tuesday-Blitz-January-16-2024"]
[Site "Chess.com"]
[Date "2024.01.16"]
[Round "8"]
[White "Trojan-Knight"]
[Black "forevery0ung"]
[Result "0-1"]
[WhiteElo "2693"]
[BlackElo "2848"]
[TimeControl "180+1"]
[EndTime "9:30:05 PST"]
[Termination "forevery0ung won by resignation"]

1. d4 {[%clk 0:02:58.1]} 1... e6 {[%clk 0:02:58.7]} 2. c4 {[%clk 0:02:58.7]}
2... b6 {[%clk 0:02:58.6]} 3. a3 {[%clk 0:02:58]} 3... Bb7 {[%clk 0:02:57.3]} 4.
d5 {[%clk 0:02:58.5]} 4... Nf6 {[%clk 0:02:43]} 5. Nc3 {[%clk 0:02:58.5]} 5...
Bd6 {[%clk 0:02:39.7]} 6. g3 {[%clk 0:02:58.5]} 6... O-O {[%clk 0:02:39.1]} 7.
Bg2 {[%clk 0:02:58.7]} 7... Re8 {[%clk 0:02:39.3]} 8. Nf3 {[%clk 0:02:55]} 8...
exd5 {[%clk 0:02:39.2]} 9. Nd4 {[%clk 0:02:53.1]} 9... Nc6 {[%clk 0:02:28.2]}
10. Nf5 {[%clk 0:02:52.3]} 10... dxc4 {[%clk 0:02:04.4]} 11. Nxd6 {[%clk
0:02:45.3]} 11... cxd6 {[%clk 0:02:05.3]} 12. O-O {[%clk 0:02:38]} 12... Na5
{[%clk 0:02:04.6]} 13. Qxd6 {[%clk 0:02:34.1]} 13... Bxg2 {[%clk 0:02:02.7]} 14.
Kxg2 {[%clk 0:02:35]} 14... Qc8 {[%clk 0:01:58.6]} 15. Bg5 {[%clk 0:02:13.1]}
15... Re6 {[%clk 0:01:56.9]} 16. Qf4 {[%clk 0:02:01.6]} 16... Qc6+ {[%clk
0:01:57.3]} 17. Kg1 {[%clk 0:01:58.6]} 17... Ne4 {[%clk 0:01:48.1]} 18. Nxe4
{[%clk 0:01:36.5]} 18... Rxe4 {[%clk 0:01:49]} 19. Qf3 {[%clk 0:01:34.6]} 19...
Rae8 {[%clk 0:01:46.6]} 20. Rfe1 {[%clk 0:01:24.2]} 20... Nb3 {[%clk 0:01:44.5]}
21. Rad1 {[%clk 0:01:23.8]} 21... Nd4 {[%clk 0:01:44.6]} 22. Qg2 {[%clk
0:01:00.7]} 22... Nxe2+ {[%clk 0:01:44.1]} 23. Kf1 {[%clk 0:00:58.8]} 23...
Nxg3+ {[%clk 0:01:28.3]} 24. Qxg3 {[%clk 0:00:53.1]} 24... Rxe1+ {[%clk
0:01:28.9]} 25. Rxe1 {[%clk 0:00:49.4]} 25... Qh1+ {[%clk 0:01:29.5]} 26. Qg1
{[%clk 0:00:49.9]} 26... Rxe1+ {[%clk 0:01:28.9]} 27. Kxe1 {[%clk 0:00:50.5]}
27... Qxg1+ {[%clk 0:01:29.5]} 0-1

[Event "Early-Titled-Tuesday-Blitz-January-16-2024"]
[Site "Chess.com"]
[Date "2024.01.16"]
[Round "8"]
[White "Rud_Makarian"]
[Black "tptagain"]
[Result "1-0"]
[WhiteElo "3045"]
[BlackElo "2957"]
[TimeControl "180+1"]
[EndTime "9:30:06 PST"]
[Termination "Rud_Makarian won by resignation"]

1. d4 {[%clk 0:03:00.9]} 1... d5 {[%clk 0:02:59.4]} 2. c4 {[%clk 0:03:00.8]}
2... e6 {[%clk 0:02:59.9]} 3. Nf3 {[%clk 0:03:01.4]} 3... c6 {[%clk 0:02:59]} 4.
Nc3 {[%clk 0:03:00.1]} 4... dxc4 {[%clk 0:02:58.7]} 5. g3 {[%clk 0:03:00.8]}
5... b5 {[%clk 0:02:58.5]} 6. Bg2 {[%clk 0:03:01.2]} 6... Bb7 {[%clk 0:02:58.9]}
7. Ne5 {[%clk 0:03:01.8]} 7... a6 {[%clk 0:02:55.2]} 8. O-O {[%clk 0:03:01.9]}
8... Nf6 {[%clk 0:02:52.5]} 9. b3 {[%clk 0:03:02.4]} 9... cxb3 {[%clk 0:02:46]}
10. Qxb3 {[%clk 0:03:03.3]} 10... Qxd4 {[%clk 0:02:44.4]} 11. Bf4 {[%clk
0:03:03.2]} 11... Qb6 {[%clk 0:02:40.8]} 12. Nc4 {[%clk 0:02:40.1]} 12... Qd8
{[%clk 0:02:16.4]} 13. Rfd1 {[%clk 0:02:37.9]} 13... Nd5 {[%clk 0:01:52.9]} 14.
e4 {[%clk 0:02:38]} 14... Be7 {[%clk 0:01:53.2]} 15. exd5 {[%clk 0:02:33.1]}
15... exd5 {[%clk 0:01:54.1]} 16. Nxd5 {[%clk 0:01:59.8]} 16... cxd5 {[%clk
0:01:51.9]} 17. Bxd5 {[%clk 0:02:00.3]} 17... Bxd5 {[%clk 0:01:39.1]} 18. Rxd5
{[%clk 0:02:00.8]} 18... Nd7 {[%clk 0:01:15.1]} 19. Ne5 {[%clk 0:01:35.8]} 19...
O-O {[%clk 0:01:11.9]} 20. Nxd7 {[%clk 0:01:23.3]} 20... Re8 {[%clk 0:01:09.5]}
21. Rad1 {[%clk 0:01:05.4]} 21... Qa5 {[%clk 0:01:06.8]} 22. Rf5 {[%clk
0:01:02.1]} 1-0

[Event "Early-Titled-Tuesday-Blitz-January-16-2024"]
[Site "Chess.com"]
[Date "2024.01.16"]
[Round "8"]
[White "WhiteKnight2612"]
[Black "SashaKuzhilniy"]
[Result "1-0"]
[WhiteElo "2868"]
[BlackElo "2664"]
[TimeControl "180+1"]
[EndTime "9:30:06 PST"]
[Termination "WhiteKnight2612 won by resignation"]

1. d4 {[%clk 0:03:00.9]} 1... e6 {[%clk 0:02:59.9]} 2. c4 {[%clk 0:03:01.8]}
2... d5 {[%clk 0:02:58.1]} 3. Nc3 {[%clk 0:03:01.3]} 3... Nf6 {[%clk 0:02:56.9]}
4. cxd5 {[%clk 0:03:01.9]} 4... exd5 {[%clk 0:02:56.1]} 5. Bg5 {[%clk
0:03:02.6]} 5... c6 {[%clk 0:02:56.3]} 6. e3 {[%clk 0:03:03]} 6... Be7 {[%clk
0:02:54.8]} 7. Bd3 {[%clk 0:03:03.2]} 7... Nbd7 {[%clk 0:02:53.6]} 8. Nge2
{[%clk 0:03:03.4]} 8... Nf8 {[%clk 0:02:53.6]} 9. Qc2 {[%clk 0:03:03.1]} 9...
Ne6 {[%clk 0:02:53.4]} 10. Bh4 {[%clk 0:03:01.7]} 10... g6 {[%clk 0:02:46.3]}
11. f3 {[%clk 0:03:01.2]} 11... Ng7 {[%clk 0:02:45.9]} 12. Bf2 {[%clk
0:03:01.2]} 12... O-O {[%clk 0:02:40.7]} 13. O-O {[%clk 0:03:00.5]} 13... Re8
{[%clk 0:02:40.5]} 14. e4 {[%clk 0:03:00.4]} 14... dxe4 {[%clk 0:02:39.1]} 15.
fxe4 {[%clk 0:03:00.7]} 15... Ng4 {[%clk 0:02:39.2]} 16. Kh1 {[%clk 0:02:55.9]}
16... Nxf2+ {[%clk 0:02:34.2]} 17. Rxf2 {[%clk 0:02:56.8]} 17... Ne6 {[%clk
0:02:17.5]} 18. Bc4 {[%clk 0:02:50]} 18... Rf8 {[%clk 0:01:52.2]} 19. Raf1
{[%clk 0:02:49.7]} 19... b5 {[%clk 0:01:29.3]} 20. Bb3 {[%clk 0:02:47.4]} 20...
b4 {[%clk 0:01:29.3]} 21. Na4 {[%clk 0:02:38.6]} 21... Qd6 {[%clk 0:00:58.4]}
22. e5 {[%clk 0:02:06.6]} 22... Qd7 {[%clk 0:00:54.6]} 23. Qc4 {[%clk
0:02:01.8]} 23... a5 {[%clk 0:00:52.3]} 24. Nb6 {[%clk 0:02:01.3]} 24... Qa7
{[%clk 0:00:49.5]} 25. Nxc8 {[%clk 0:01:54.5]} 25... Raxc8 {[%clk 0:00:46.1]}
26. Rxf7 {[%clk 0:01:54.9]} 1-0

[Event "Early-Titled-Tuesday-Blitz-January-16-2024"]
[Site "Chess.com"]
[Date "2024.01.16"]
[Round "8"]
[White "blitzking1729"]
[Black "adotand"]
[Result "0-1"]
[WhiteElo "2691"]
[BlackElo "2878"]
[TimeControl "180+1"]
[EndTime "9:30:12 PST"]
[Termination "adotand won by resignation"]

1. c4 {[%clk 0:03:00.9]} 1... Nf6 {[%clk 0:03:00]} 2. Nc3 {[%clk 0:03:01.1]}
2... g6 {[%clk 0:03:00.3]} 3. g3 {[%clk 0:02:59.6]} 3... Bg7 {[%clk 0:03:00.2]}
4. Bg2 {[%clk 0:02:59.8]} 4... d6 {[%clk 0:03:00.9]} 5. d4 {[%clk 0:02:59.3]}
5... O-O {[%clk 0:02:57.9]} 6. Nf3 {[%clk 0:02:59.6]} 6... c5 {[%clk 0:02:58.6]}
7. d5 {[%clk 0:02:58.6]} 7... e6 {[%clk 0:02:58.6]} 8. Kf1 {[%clk 0:02:57.8]}
8... exd5 {[%clk 0:02:58.2]} 9. cxd5 {[%clk 0:02:57.7]} 9... h6 {[%clk 0:02:57]}
10. h4 {[%clk 0:02:54]} 10... Re8 {[%clk 0:02:56]} 11. Bf4 {[%clk 0:02:53.7]}
11... Bf5 {[%clk 0:02:47.2]} 12. Qc1 {[%clk 0:02:49.8]} 12... h5 {[%clk
0:02:39.3]} 13. Ng5 {[%clk 0:02:47.5]} 13... a6 {[%clk 0:02:24.8]} 14. a4 {[%clk
0:02:47.1]} 14... Qe7 {[%clk 0:02:24.6]} 15. Qd2 {[%clk 0:02:37.6]} 15... Ng4
{[%clk 0:02:01.3]} 16. Re1 {[%clk 0:02:29.2]} 16... Ne5 {[%clk 0:02:00.1]} 17.
b3 {[%clk 0:02:22.7]} 17... b5 {[%clk 0:01:53.4]} 18. axb5 {[%clk 0:02:17.1]}
18... axb5 {[%clk 0:01:54.3]} 19. Nxb5 {[%clk 0:02:17.5]} 19... Na6 {[%clk
0:01:55]} 20. Nc3 {[%clk 0:01:57.2]} 20... Reb8 {[%clk 0:01:47.8]} 21. Nf3
{[%clk 0:01:24.1]} 21... Rxb3 {[%clk 0:01:45.5]} 22. Nxe5 {[%clk 0:01:17.9]}
22... Bxe5 {[%clk 0:01:46.4]} 23. Bxe5 {[%clk 0:01:17.6]} 23... Qxe5 {[%clk
0:01:47.3]} 24. Rc1 {[%clk 0:01:13.3]} 24... Nb4 {[%clk 0:01:43.1]} 25. f4
{[%clk 0:01:01.4]} 25... Qf6 {[%clk 0:01:34.2]} 26. Kf2 {[%clk 0:00:56.3]} 26...
Raa3 {[%clk 0:01:30.6]} 27. Nb5 {[%clk 0:00:54.5]} 27... Ra2 {[%clk 0:01:31]}
0-1

[Event "Early-Titled-Tuesday-Blitz-January-16-2024"]
[Site "Chess.com"]
[Date "2024.01.16"]
[Round "8"]
[White "vladgoncharov"]
[Black "A-Fier"]
[Result "1-0"]
[WhiteElo "2599"]
[BlackElo "2772"]
[TimeControl "180+1"]
[EndTime "9:30:31 PST"]
[Termination "vladgoncharov won by resignation"]

1. d4 {[%clk 0:03:00.9]} 1... d5 {[%clk 0:02:59.3]} 2. c4 {[%clk 0:03:00.5]}
2... dxc4 {[%clk 0:03:00.2]} 3. Nf3 {[%clk 0:02:59.8]} 3... c6 {[%clk
0:03:00.5]} 4. e3 {[%clk 0:02:59.8]} 4... Be6 {[%clk 0:03:01.2]} 5. Ng5 {[%clk
0:02:56.6]} 5... Qa5+ {[%clk 0:03:01.4]} 6. Nc3 {[%clk 0:02:52.5]} 6... Qxg5
{[%clk 0:03:02.3]} 7. e4 {[%clk 0:02:51.8]} 7... Qa5 {[%clk 0:03:02.2]} 8. d5
{[%clk 0:02:51.6]} 8... cxd5 {[%clk 0:03:00.2]} 9. exd5 {[%clk 0:02:51.9]} 9...
Bd7 {[%clk 0:03:00.2]} 10. Bxc4 {[%clk 0:02:52]} 10... Nf6 {[%clk 0:03:00.5]}
11. O-O {[%clk 0:02:51.5]} 11... Na6 {[%clk 0:02:56.4]} 12. Re1 {[%clk
0:02:49.5]} 12... Rc8 {[%clk 0:02:57]} 13. Qe2 {[%clk 0:02:45.1]} 13... Nc5
{[%clk 0:02:55.2]} 14. Bg5 {[%clk 0:02:42.3]} 14... Qb4 {[%clk 0:02:42.5]} 15.
a3 {[%clk 0:02:30]} 15... Qb6 {[%clk 0:02:42.3]} 16. Rad1 {[%clk 0:02:19.2]}
16... Kd8 {[%clk 0:02:32.6]} 17. d6 {[%clk 0:02:08.9]} 17... e6 {[%clk
0:02:30.1]} 18. b4 {[%clk 0:02:08.4]} 18... Na4 {[%clk 0:02:28.7]} 19. Ne4
{[%clk 0:02:08.4]} 19... h6 {[%clk 0:02:25.4]} 20. Nxf6 {[%clk 0:02:01.7]} 20...
hxg5 {[%clk 0:02:25.3]} 21. Nxd7 {[%clk 0:02:01.9]} 21... Nc3 {[%clk 0:02:08.2]}
22. Nxb6 {[%clk 0:01:52]} 22... Nxe2+ {[%clk 0:02:07.1]} 23. Bxe2 {[%clk
0:01:52.1]} 23... axb6 {[%clk 0:02:07.4]} 24. d7 {[%clk 0:01:52.4]} 24... Rc3
{[%clk 0:02:05.5]} 25. Bb5 {[%clk 0:01:52.1]} 25... Rxa3 {[%clk 0:01:47.9]} 26.
Rc1 {[%clk 0:01:48.1]} 26... Ra8 {[%clk 0:01:46.9]} 27. Re4 {[%clk 0:01:47.7]}
27... Bd6 {[%clk 0:01:45.1]} 28. Rec4 {[%clk 0:01:45.1]} 28... Bxh2+ {[%clk
0:01:44.6]} 29. Kf1 {[%clk 0:01:45]} 29... Ke7 {[%clk 0:00:54.2]} 30. Rc8 {[%clk
0:01:44.2]} 30... Rb8 {[%clk 0:00:54.7]} 31. g3 {[%clk 0:01:37.5]} 31... Bxg3
{[%clk 0:00:35.7]} 32. fxg3 {[%clk 0:01:36.5]} 1-0

[Event "Early-Titled-Tuesday-Blitz-January-16-2024"]
[Site "Chess.com"]
[Date "2024.01.16"]
[Round "8"]
[White "Predo63"]
[Black "NastyaHn"]
[Result "0-1"]
[WhiteElo "2488"]
[BlackElo "2332"]
[TimeControl "180+1"]
[EndTime "9:30:39 PST"]
[Termination "NastyaHn won by resignation"]

1. d4 {[%clk 0:02:50.9]} 1... Nf6 {[%clk 0:02:58.8]} 2. Bg5 {[%clk 0:02:50.5]}
2... Ne4 {[%clk 0:02:57.3]} 3. Bf4 {[%clk 0:02:50.7]} 3... d5 {[%clk 0:02:56.7]}
4. Nd2 {[%clk 0:02:50.8]} 4... Nxd2 {[%clk 0:02:49.8]} 5. Qxd2 {[%clk
0:02:51.7]} 5... c5 {[%clk 0:02:48.8]} 6. c3 {[%clk 0:02:50.6]} 6... Nc6 {[%clk
0:02:48.5]} 7. e3 {[%clk 0:02:50.6]} 7... Bf5 {[%clk 0:02:45.8]} 8. Nf3 {[%clk
0:02:50.3]} 8... h6 {[%clk 0:02:44.4]} 9. Be2 {[%clk 0:02:49.4]} 9... e6 {[%clk
0:02:44.2]} 10. O-O {[%clk 0:02:49.5]} 10... Be7 {[%clk 0:02:37.9]} 11. h3
{[%clk 0:02:39.4]} 11... O-O {[%clk 0:02:36.9]} 12. Rfe1 {[%clk 0:02:38.9]}
12... Rc8 {[%clk 0:02:33.2]} 13. Ne5 {[%clk 0:02:38.2]} 13... Nxe5 {[%clk
0:02:32.7]} 14. Bxe5 {[%clk 0:02:38.4]} 14... Bd6 {[%clk 0:02:28.6]} 15. Bxd6
{[%clk 0:02:37.9]} 15... Qxd6 {[%clk 0:02:28.4]} 16. a3 {[%clk 0:02:37.9]} 16...
e5 {[%clk 0:02:20.8]} 17. dxe5 {[%clk 0:02:37]} 17... Qxe5 {[%clk 0:02:20.8]}
18. Bf3 {[%clk 0:02:35.2]} 18... Rfd8 {[%clk 0:02:21]} 19. Red1 {[%clk 0:02:35]}
19... Be4 {[%clk 0:02:20.9]} 20. Qe2 {[%clk 0:02:34]} 20... Rd6 {[%clk
0:02:10.4]} 21. Rd2 {[%clk 0:02:34]} 21... Rcd8 {[%clk 0:02:10.4]} 22. Rad1
{[%clk 0:02:33.2]} 22... b6 {[%clk 0:02:07.5]} 23. Bxe4 {[%clk 0:02:30.4]} 23...
dxe4 {[%clk 0:02:02.4]} 24. Rxd6 {[%clk 0:02:26.9]} 24... Rxd6 {[%clk
0:02:02.2]} 25. Rd2 {[%clk 0:02:21.2]} 25... Qe6 {[%clk 0:01:47.7]} 26. Qd1
{[%clk 0:02:20.3]} 26... Rxd2 {[%clk 0:01:47.6]} 27. Qxd2 {[%clk 0:02:20.9]}
27... Qc4 {[%clk 0:01:42.5]} 28. g4 {[%clk 0:02:16.3]} 28... g6 {[%clk
0:01:37.3]} 29. b4 {[%clk 0:02:04.5]} 29... a5 {[%clk 0:01:30.2]} 30. bxa5
{[%clk 0:02:02.7]} 30... bxa5 {[%clk 0:01:30.3]} 31. Qb2 {[%clk 0:02:02.4]}
31... Kg7 {[%clk 0:01:24.1]} 32. Kg2 {[%clk 0:02:02.3]} 32... a4 {[%clk
0:01:23.9]} 33. Kg3 {[%clk 0:01:55.2]} 33... Qb3 {[%clk 0:01:18.9]} 34. Qc1
{[%clk 0:01:54.5]} 34... c4 {[%clk 0:01:17]} 35. h4 {[%clk 0:01:42.4]} 35...
Qb8+ {[%clk 0:01:08.7]} 36. Kg2 {[%clk 0:01:41.9]} 36... Qd6 {[%clk 0:01:01.5]}
37. Qc2 {[%clk 0:01:37.7]} 37... Qxa3 {[%clk 0:00:57.8]} 38. Qxe4 {[%clk
0:01:37.3]} 38... Qxc3 {[%clk 0:00:57.7]} 39. g5 {[%clk 0:01:35.3]} 39... hxg5
{[%clk 0:00:56.4]} 40. hxg5 {[%clk 0:01:35.6]} 40... a3 {[%clk 0:00:56.7]} 41.
Qa8 {[%clk 0:01:35.7]} 41... Qb2 {[%clk 0:00:54.8]} 42. Kf3 {[%clk 0:01:30.2]}
42... a2 {[%clk 0:00:54.8]} 0-1

[Event "Early-Titled-Tuesday-Blitz-January-16-2024"]
[Site "Chess.com"]
[Date "2024.01.16"]
[Round "8"]
[White "stratacticos"]
[Black "ZuraTqebuchava"]
[Result "0-1"]
[WhiteElo "1973"]
[BlackElo "2151"]
[TimeControl "180+1"]
[EndTime "9:30:42 PST"]
[Termination "ZuraTqebuchava won by resignation"]

1. e4 {[%clk 0:02:57.3]} 1... e5 {[%clk 0:02:44.4]} 2. Nf3 {[%clk 0:02:56.1]}
2... Nc6 {[%clk 0:02:43.2]} 3. Bc4 {[%clk 0:02:55.6]} 3... Be7 {[%clk
0:02:41.9]} 4. O-O {[%clk 0:02:53.7]} 4... Nf6 {[%clk 0:02:38.3]} 5. Re1 {[%clk
0:02:53.5]} 5... O-O {[%clk 0:02:36.5]} 6. c3 {[%clk 0:02:53]} 6... d6 {[%clk
0:02:36.3]} 7. h3 {[%clk 0:02:52.6]} 7... a6 {[%clk 0:02:31.6]} 8. a4 {[%clk
0:02:51.5]} 8... h6 {[%clk 0:02:25.1]} 9. d4 {[%clk 0:02:50.5]} 9... exd4 {[%clk
0:02:24.4]} 10. cxd4 {[%clk 0:02:49.3]} 10... Nxe4 {[%clk 0:02:08]} 11. Rxe4
{[%clk 0:02:48.2]} 11... d5 {[%clk 0:02:07.8]} 12. Bxd5 {[%clk 0:02:45.3]} 12...
Qxd5 {[%clk 0:02:07.5]} 13. Nc3 {[%clk 0:02:45.2]} 13... Qh5 {[%clk 0:02:02]}
14. d5 {[%clk 0:02:39.6]} 14... Bf5 {[%clk 0:01:30.1]} 15. Re1 {[%clk
0:02:00.7]} 15... Rfd8 {[%clk 0:01:19.7]} 16. Bf4 {[%clk 0:01:56.5]} 16... Bd6
{[%clk 0:01:15.7]} 17. Qc1 {[%clk 0:01:47.9]} 17... Nb4 {[%clk 0:01:00.4]} 18.
Nd4 {[%clk 0:01:41.2]} 18... Nd3 {[%clk 0:00:52.9]} 19. Qe3 {[%clk 0:01:32.9]}
19... Bxf4 {[%clk 0:00:50.3]} 0-1

[Event "Early-Titled-Tuesday-Blitz-January-16-2024"]
[Site "Chess.com"]
[Date "2024.01.16"]
[Round "8"]
[White "missponyo10"]
[Black "MdChess1734"]
[Result "0-1"]
[WhiteElo "2264"]
[BlackElo "2410"]
[TimeControl "180+1"]
[EndTime "9:30:51 PST"]
[Termination "MdChess1734 won by checkmate"]

1. e4 {[%clk 0:02:58.5]} 1... c6 {[%clk 0:02:59.2]} 2. d4 {[%clk 0:02:58]} 2...
d5 {[%clk 0:02:59.5]} 3. Nd2 {[%clk 0:02:58.9]} 3... dxe4 {[%clk 0:02:59.6]} 4.
Nxe4 {[%clk 0:02:59.8]} 4... Nf6 {[%clk 0:02:59.8]} 5. Nxf6+ {[%clk 0:03:00.1]}
5... exf6 {[%clk 0:03:00.3]} 6. c3 {[%clk 0:03:01]} 6... Bd6 {[%clk 0:03:00.6]}
7. Bd3 {[%clk 0:03:01.9]} 7... O-O {[%clk 0:02:59.4]} 8. Ne2 {[%clk 0:03:02.8]}
8... Re8 {[%clk 0:02:57.9]} 9. Qc2 {[%clk 0:03:03.2]} 9... h5 {[%clk 0:02:55.7]}
10. O-O {[%clk 0:03:03.3]} 10... h4 {[%clk 0:02:55.1]} 11. Be3 {[%clk
0:02:55.8]} 11... Nd7 {[%clk 0:02:53.2]} 12. h3 {[%clk 0:02:54.3]} 12... Nf8
{[%clk 0:02:53.3]} 13. Qd2 {[%clk 0:02:51.2]} 13... Bc7 {[%clk 0:02:51.4]} 14.
f4 {[%clk 0:02:47.3]} 14... f5 {[%clk 0:02:29.8]} 15. Bf2 {[%clk 0:02:41]} 15...
Ng6 {[%clk 0:02:26.7]} 16. Rae1 {[%clk 0:02:29.6]} 16... Be6 {[%clk 0:02:08.7]}
17. b3 {[%clk 0:02:28.7]} 17... Qd6 {[%clk 0:02:06.4]} 18. Be3 {[%clk
0:02:28.5]} 18... Rad8 {[%clk 0:02:05.5]} 19. c4 {[%clk 0:02:26.8]} 19... Qe7
{[%clk 0:01:53.9]} 20. Kh1 {[%clk 0:02:13]} 20... Bxc4 {[%clk 0:01:49.9]} 21.
Bxc4 {[%clk 0:02:10.7]} 21... Qxe3 {[%clk 0:01:49.8]} 22. Qxe3 {[%clk
0:01:59.3]} 22... Rxe3 {[%clk 0:01:49.5]} 23. Ng1 {[%clk 0:01:59.3]} 23... Rxe1
{[%clk 0:01:41.4]} 24. Rxe1 {[%clk 0:02:00.2]} 24... Rxd4 {[%clk 0:01:29.1]} 25.
Re8+ {[%clk 0:01:59.3]} 25... Kh7 {[%clk 0:01:29.2]} 26. Bxf7 {[%clk 0:01:57.9]}
26... Nxf4 {[%clk 0:01:25.5]} 27. Re7 {[%clk 0:01:53]} 27... Bb6 {[%clk
0:01:21.3]} 28. Nf3 {[%clk 0:01:43.6]} 28... Rd1+ {[%clk 0:01:16.5]} 29. Kh2
{[%clk 0:01:43.4]} 29... Bc5 {[%clk 0:01:08.3]} 30. Re8 {[%clk 0:01:42.5]} 30...
Bd6 {[%clk 0:00:51.7]} 31. Ng5+ {[%clk 0:01:40.3]} 31... Kh6 {[%clk 0:00:50]}
32. Nf3 {[%clk 0:01:36.6]} 32... Ne6+ {[%clk 0:00:36.6]} 33. g3 {[%clk
0:01:34.4]} 33... Bxg3+ {[%clk 0:00:36.8]} 34. Kg2 {[%clk 0:01:34.6]} 34... Nf4#
{[%clk 0:00:37.5]} 0-1

[Event "Early-Titled-Tuesday-Blitz-January-16-2024"]
[Site "Chess.com"]
[Date "2024.01.16"]
[Round "8"]
[White "UnTucopalaTimba"]
[Black "Ezov"]
[Result "0-1"]
[WhiteElo "1999"]
[BlackElo "2225"]
[TimeControl "180+1"]
[EndTime "9:30:53 PST"]
[Termination "Ezov won by resignation"]

1. e4 {[%clk 0:03:00.2]} 1... e6 {[%clk 0:02:57]} 2. d4 {[%clk 0:02:59.8]} 2...
d5 {[%clk 0:02:57.9]} 3. exd5 {[%clk 0:03:00.1]} 3... exd5 {[%clk 0:02:56.8]} 4.
Bd3 {[%clk 0:03:00.1]} 4... Bd6 {[%clk 0:02:55.4]} 5. Ne2 {[%clk 0:02:58.3]}
5... Ne7 {[%clk 0:02:54]} 6. c3 {[%clk 0:02:53.2]} 6... Nbc6 {[%clk 0:02:53.5]}
7. O-O {[%clk 0:02:51]} 7... f6 {[%clk 0:02:51.7]} 8. Nd2 {[%clk 0:02:49]} 8...
Bf5 {[%clk 0:02:48.2]} 9. Qc2 {[%clk 0:02:47.7]} 9... Qd7 {[%clk 0:02:46]} 10.
Ng3 {[%clk 0:02:45.5]} 10... Bg6 {[%clk 0:02:42.6]} 11. Nf3 {[%clk 0:02:42.9]}
11... O-O-O {[%clk 0:02:39.3]} 12. b4 {[%clk 0:02:38.3]} 12... Bxd3 {[%clk
0:02:22.4]} 13. Qxd3 {[%clk 0:02:37.7]} 13... h5 {[%clk 0:02:21.8]} 14. h4
{[%clk 0:02:32.1]} 14... g5 {[%clk 0:02:19]} 15. b5 {[%clk 0:02:19.4]} 15... Na5
{[%clk 0:02:13.5]} 16. a4 {[%clk 0:02:14.4]} 16... Bf4 {[%clk 0:01:57.9]} 17.
Ba3 {[%clk 0:01:51.6]} 17... Nc4 {[%clk 0:01:35.2]} 18. Bb4 {[%clk 0:01:42.6]}
18... Rdg8 {[%clk 0:01:22.4]} 19. Rfe1 {[%clk 0:01:37.2]} 19... Ng6 {[%clk
0:01:19.3]} 20. Nf5 {[%clk 0:01:32.9]} 20... g4 {[%clk 0:01:09.1]} 21. Ne7+
{[%clk 0:01:21.3]} 21... Nxe7 {[%clk 0:01:05.1]} 22. Rxe7 {[%clk 0:01:20.7]}
22... gxf3 {[%clk 0:00:35]} 23. g3 {[%clk 0:01:16.7]} 23... Qh3 {[%clk
0:00:30.8]} 24. Qxf3 {[%clk 0:01:08.6]} 24... Bxg3 {[%clk 0:00:29]} 0-1